bitfinex-derivatives/quotes_BTCF0:USTF0_20241104
["timestamp","ask_amount","ask_price","bid_price","bid_amount"]
[1730684215078,0.02808153,68802.0,68801.0,0.072706]
[1730684215277,0.13939964,68804.0,68800.0,0.1]
[1730684215278,0.072706,68801.0,68800.0,0.1]
[1730684215479,0.13639985,68801.0,68800.0,0.1]
[1730684216488,0.57243985,68801.0,68800.0,0.1]
[1730684216789,0.13739985,68801.0,68800.0,0.104]
[1730684217185,0.13839985,68801.0,68800.0,0.105]
[1730684218685,0.074706,68801.0,68800.0,0.105]
[1730684220087,0.074706,68801.0,68800.0,0.1480136]
[1730684220292,0.074706,68801.0,68800.0,0.105]
[1730684226789,0.13842032,68801.0,68800.0,0.105]
[1730684227396,0.072708,68799.0,68782.0,0.072726]
[1730684227583,0.3608,68790.0,68780.0,0.4092]
[1730684227896,0.3608,68790.0,68789.0,0.072718]
[1730684228093,0.50019964,68790.0,68789.0,0.072718]
[1730684228681,0.50019964,68790.0,68780.0,0.4092]
[1730684228989,0.50019964,68790.0,68786.0,0.072721]
[1730684229485,0.14139964,68790.0,68789.0,0.001]
[1730684229686,0.14139964,68790.0,68789.0,0.073718]
[1730684229687,0.002,68790.0,68789.0,0.073718]
[1730684229998,0.002,68790.0,68789.0,0.072718]
[1730684230397,0.001,68790.0,68789.0,0.072718]
[1730684230700,0.002,68790.0,68789.0,0.072718]
[1730684231283,0.002,68790.0,68789.0,0.433518]
[1730684231488,0.002,68790.0,68789.0,0.869638]
[1730684231796,0.002,68790.0,68789.0,0.964838]
[1730684232185,0.002,68790.0,68789.0,0.965838]
[1730684233298,0.50019964,68811.0,68789.0,0.89312]
[1730684233502,0.3608,68818.0,68805.0,0.13939964]
[1730684233503,0.02809232,68810.0,68805.0,0.13939964]
[1730684233799,0.13939964,68813.0,68806.0,0.0978]
[1730684233983,0.13939964,68807.0,68802.0,0.0430136]
[1730684234188,0.072705,68802.0,68800.0,0.3608]
[1730684234386,0.13939964,68807.0,68805.0,0.072701]
[1730684234607,0.3608,68811.0,68810.0,0.072696]
[1730684235283,0.3748,68811.0,68810.0,0.072696]
[1730684235896,0.4184221,68811.0,68810.0,0.072696]
[1730684236205,0.4264221,68811.0,68810.0,0.072696]
[1730684236587,0.4264221,68811.0,68803.0,0.0430136]
[1730684236588,0.4124221,68811.0,68803.0,0.0430136]
[1730684236887,0.13939964,68805.0,68800.0,0.40400612]
[1730684237085,0.13939964,68805.0,68802.0,0.072703]
[1730684237289,0.25867964,68805.0,68802.0,0.072703]
[1730684237691,0.33138064,68805.0,68800.0,0.40400612]
[1730684237894,0.33138064,68805.0,68800.0,0.3608]
[1730684238290,0.072707,68800.0,68798.0,0.04320612]
[1730684238499,0.072707,68800.0,68796.0,0.00218045]
[1730684238500,0.13939964,68799.0,68796.0,0.00218045]
[1730684238695,0.21210764,68799.0,68796.0,0.00218045]
[1730684239903,0.21210764,68799.0,68796.0,0.00318045]
[1730684240105,0.3608,68804.0,68798.0,0.04320612]
[1730684240308,0.002,68805.0,68804.0,0.072702]
[1730684240495,0.002,68805.0,68802.0,0.04320612]
[1730684240696,0.074702,68805.0,68801.0,0.04320612]
[1730684240896,0.072702,68805.0,68801.0,0.04320612]
[1730684241097,0.072705,68802.0,68801.0,0.04320612]
[1730684241411,0.072705,68802.0,68800.0,0.04320612]
[1730684241798,0.02809115,68801.0,68796.0,0.00218045]
[1730684242105,0.07271,68797.0,68796.0,0.00218045]
[1730684242307,0.13641328,68797.0,68796.0,0.00218045]
[1730684243001,0.10080115,68797.0,68796.0,0.00318045]
[1730684243201,0.10080115,68797.0,68796.0,0.00418045]
[1730684243904,0.02809115,68797.0,68796.0,0.00418045]
[1730684244108,0.02809115,68797.0,68796.0,0.07689145]
[1730684244303,0.02809159,68799.0,68796.0,0.00418045]
[1730684244499,0.02809159,68798.0,68797.0,0.07271]
[1730684245195,0.063704,68798.0,68796.0,0.00418045]
[1730684245395,0.11928,68800.0,68796.0,0.07589145]
[1730684245396,0.06370207,68797.0,68796.0,0.07589145]
[1730684245699,0.06370232,68799.0,68796.0,0.00318045]
[1730684245900,0.3608,68805.0,68797.0,0.07371]
[1730684245901,0.06470232,68798.0,68797.0,0.07371]
[1730684247009,0.06470291,68798.0,68797.0,0.07371]
[1730684247307,0.06370291,68798.0,68797.0,0.07271]
[1730684247507,0.06470291,68798.0,68797.0,0.07271]
[1730684247902,0.06470291,68798.0,68797.0,0.07371]
[1730684248614,0.06470291,68798.0,68797.0,0.07471]
[1730684249006,0.072707,68800.0,68798.0,0.072708]
[1730684249314,0.13939964,68803.0,68797.0,0.002]
[1730684249514,0.13939964,68803.0,68799.0,0.05773304]
[1730684249715,0.072707,68800.0,68797.0,0.002]
[1730684249906,0.13939964,68803.0,68797.0,0.002]
[1730684250119,0.072707,68800.0,68799.0,0.05773121]
[1730684250303,0.3608,68804.0,68797.0,0.002]
[1730684250507,0.3608,68804.0,68803.0,0.11600169]
[1730684250816,0.3608,68804.0,68803.0,0.072703]
[1730684251520,0.3618,68804.0,68803.0,0.072703]
[1730684251915,0.00112001,68812.0,68811.0,0.072695]
[1730684252109,0.61947964,68818.0,68811.0,0.072695]
[1730684252309,0.072693,68813.0,68812.0,0.04327999]
[1730684252617,0.072693,68813.0,68811.0,0.072695]
[1730684252812,0.072693,68813.0,68812.0,0.04327009]
[1730684253916,0.072693,68813.0,68811.0,0.11596509]
[1730684254312,0.009,68812.0,68811.0,0.11596509]
[1730684254716,0.009,68812.0,68811.0,0.04327009]
[1730684254918,0.22209264,68813.0,68810.0,0.04327009]
[1730684255103,0.23209264,68813.0,68811.0,0.04327009]
[1730684255303,0.23209264,68813.0,68810.0,0.04327009]
[1730684255503,0.009,68812.0,68809.0,0.04327009]
[1730684255707,0.018,68812.0,68809.0,0.04327009]
[1730684256807,0.3608,68810.0,68803.0,0.05770893]
[1730684257015,0.072699,68807.0,68806.0,0.04327476]
[1730684257312,0.0727,68806.0,68805.0,0.04327476]
[1730684257911,0.072701,68805.0,68804.0,0.04327476]
[1730684258503,0.072703,68804.0,68800.0,0.13041593]
[1730684258710,0.13939964,68802.0,68800.0,0.05772939]
[1730684259017,0.21210464,68802.0,68801.0,0.04330329]
[1730684259518,0.072708,68799.0,68797.0,0.04331673]
[1730684259725,0.072711,68796.0,68795.0,0.04331673]
[1730684259910,0.13939964,68796.0,68791.0,0.05772939]
[1730684260221,0.13939964,68796.0,68794.0,0.04333249]
[1730684260415,0.21211064,68796.0,68795.0,0.04334158]
[1730684260616,0.072712,68795.0,68794.0,0.04334158]
[1730684261118,0.072712,68795.0,68794.0,0.04334399]
[1730684261307,0.072712,68795.0,68794.0,0.001]
[1730684261308,0.222212,68795.0,68794.0,0.001]
[1730684261708,0.223212,68795.0,68794.0,0.003]
[1730684261910,0.13939964,68795.0,68794.0,0.003]
[1730684262111,0.21311164,68795.0,68794.0,0.003]
[1730684264118,0.21311164,68795.0,68781.0,0.07157125]
[1730684264119,0.072725,68783.0,68778.0,0.122229]
[1730684264330,0.13939964,68780.0,68779.0,0.072729]
[1730684264509,0.13939964,68785.0,68779.0,0.072729]
[1730684264831,0.21212264,68785.0,68779.0,0.072729]
[1730684265322,0.002,68783.0,68779.0,0.072729]
[1730684265826,0.002,68783.0,68780.0,0.072728]
[1730684266119,0.001,68783.0,68780.0,0.072728]
[1730684266321,0.21212764,68781.0,68779.0,0.004]
[1730684267114,0.13939964,68781.0,68779.0,0.004]
[1730684267413,0.13939964,68781.0,68779.0,0.005]
[1730684267615,0.13939964,68781.0,68779.0,0.001]
[1730684267818,0.13939964,68781.0,68779.0,0.002]
[1730684268423,0.14039964,68781.0,68779.0,0.001]
[1730684268819,0.072728,68780.0,68778.0,0.0495]
[1730684270323,0.001,68780.0,68778.0,0.0505]
[1730684270525,0.072729,68779.0,68778.0,0.001]
[1730684271215,0.072729,68779.0,68778.0,0.002]
[1730684271216,0.10083178,68779.0,68778.0,0.002]
[1730684271525,0.072729,68779.0,68778.0,0.002]
[1730684271723,0.072733,68775.0,68769.0,0.0465]
[1730684272025,0.072738,68770.0,68769.0,0.0465]
[1730684272228,0.21213764,68770.0,68769.0,0.0465]
[1730684274219,0.21213764,68770.0,68769.0,0.0475]
[1730684274220,0.25578415,68770.0,68769.0,0.0475]
[1730684274631,0.25678415,68770.0,68769.0,0.0485]
[1730684277923,0.18404615,68770.0,68769.0,0.0485]
[1730684278151,0.18404615,68770.0,68769.0,0.121239]
[1730684278152,0.002,68770.0,68769.0,0.121239]
[1730684278336,0.002,68770.0,68769.0,0.0485]
[1730684279426,0.002,68770.0,68769.0,0.121239]
[1730684281739,0.002,68770.0,68769.0,0.0485]
[1730684282034,0.21413764,68770.0,68769.0,0.0485]
[1730684282824,0.21413764,68770.0,68769.0,0.002]
[1730684283028,0.78977728,68770.0,68762.0,0.0474]
[1730684283233,0.072745,68764.0,68758.0,0.3608]
[1730684283426,0.21214964,68759.0,68758.0,0.3608]
[1730684283739,0.33366964,68759.0,68758.0,0.3608]
[1730684285224,0.26191964,68759.0,68758.0,0.3618]
[1730684285420,0.12252,68759.0,68758.0,0.434551]
[1730684285632,0.12352,68759.0,68758.0,0.434551]
[1730684286830,0.002,68759.0,68758.0,0.434551]
[1730684294528,0.03010766,68759.0,68758.0,0.434551]
[1730684298037,0.03010766,68759.0,68758.0,0.073751]
[1730684298942,0.03010766,68759.0,68758.0,0.001]
[1730684298943,0.10285766,68759.0,68758.0,0.001]
[1730684299638,0.13849282,68759.0,68758.0,0.001]
[1730684301136,0.1830197,68759.0,68758.0,0.001]
[1730684301430,0.18302231,68759.0,68758.0,0.001]
[1730684302136,0.11927688,68759.0,68758.0,0.001]
[1730684304136,0.55559688,68759.0,68758.0,0.001]
[1730684304437,0.55559688,68759.0,68758.0,0.04436413]
[1730684304635,0.55559688,68759.0,68758.0,0.001]
[1730684305239,0.11927688,68759.0,68758.0,0.001]
[1730684306735,0.23867688,68759.0,68758.0,0.001]
[1730684306932,0.11927688,68759.0,68758.0,0.04436413]
[1730684307245,0.23867688,68759.0,68758.0,0.001]
[1730684307745,0.072724,68784.0,68758.0,0.001]
[1730684307746,0.13939964,68768.0,68764.0,0.072744]
[1730684307942,0.1194,68765.0,68764.0,0.072744]
[1730684308157,0.1194,68765.0,68764.0,0.1305243]
[1730684308642,0.40499956,68766.0,68765.0,0.072744]
[1730684308643,0.52439956,68766.0,68765.0,0.072744]
[1730684308841,0.52439956,68766.0,68765.0,0.1305243]
[1730684309050,0.52539956,68766.0,68765.0,0.1305243]
[1730684309234,0.52539956,68766.0,68765.0,0.072744]
[1730684309235,0.40599956,68766.0,68765.0,0.072744]
[1730684310135,0.40699956,68766.0,68765.0,0.072744]
[1730684310734,0.40699956,68766.0,68765.0,0.074744]
[1730684311135,0.04619956,68766.0,68765.0,0.074744]
[1730684311343,0.40699956,68766.0,68765.0,0.002]
[1730684314344,0.40699956,68766.0,68765.0,0.05983401]
[1730684315146,0.40699956,68766.0,68765.0,0.13257801]
[1730684315346,0.002,68766.0,68765.0,0.074744]
[1730684315756,0.002,68766.0,68765.0,0.25437768]
[1730684315944,0.002,68766.0,68765.0,0.18280643]
[1730684316449,0.002,68766.0,68765.0,0.61908643]
[1730684316844,0.072729,68779.0,68772.0,0.072736]
[1730684317376,0.1449468,68777.0,68772.0,0.508976]
[1730684317657,0.28434644,68789.0,68783.0,0.072725]
[1730684317855,0.08026934,68788.0,68779.0,0.3608]
[1730684318153,0.08026934,68788.0,68787.0,0.07272]
[1730684318353,0.03562093,68788.0,68787.0,0.07272]
[1730684320060,0.04362093,68788.0,68787.0,0.07272]
[1730684320352,0.008,68788.0,68787.0,0.07272]
[1730684320655,0.008,68788.0,68787.0,0.17232]
[1730684321057,0.004,68788.0,68787.0,0.17232]
[1730684321356,0.005,68788.0,68787.0,0.18032]
[1730684321557,0.001,68788.0,68787.0,0.18032]
[1730684321759,0.002,68788.0,68787.0,0.18832]
[1730684322659,0.002,68788.0,68787.0,0.18032]
[1730684322857,0.002,68788.0,68787.0,0.19332]
[1730684323262,0.072714,68793.0,68787.0,0.18432]
[1730684323464,0.072714,68793.0,68791.0,0.072716]
[1730684324362,0.072714,68793.0,68792.0,0.072715]
[1730684325752,0.00218123,68794.0,68792.0,0.072715]
[1730684326261,0.00218123,68794.0,68793.0,0.072714]
[1730684327763,0.00218123,68794.0,68793.0,0.074714]
[1730684328176,0.3608,68807.0,68793.0,0.44008]
[1730684328455,0.3608,68807.0,68799.0,0.3608]
[1730684328456,0.13939964,68804.0,68799.0,0.3608]
[1730684329552,0.13939964,68804.0,68799.0,0.433507]
[1730684329866,0.072707,68800.0,68799.0,0.3618]
[1730684330164,0.072707,68800.0,68799.0,0.001]
[1730684330864,0.64814664,68800.0,68799.0,0.001]
[1730684331052,0.13939964,68788.0,68776.0,0.1392]
[1730684331257,0.13939964,68788.0,68786.0,0.072721]
[1730684332056,0.21211964,68788.0,68776.0,0.18193501]
[1730684332253,0.1449468,68779.0,68776.0,0.06548898]
[1730684332457,0.25330781,68778.0,68777.0,0.05362076]
[1730684332963,0.10836101,68778.0,68777.0,0.05362076]
[1730684333758,0.25330781,68778.0,68777.0,0.05362076]
[1730684334062,0.10936101,68778.0,68777.0,0.06662076]
[1730684334262,0.18309162,68778.0,68777.0,0.07962076]
[1730684334669,0.18309162,68778.0,68777.0,0.026]
[1730684334670,0.37466316,68778.0,68777.0,0.026]
[1730684335671,0.37466316,68778.0,68777.0,0.027]
[1730684336168,0.37466316,68778.0,68777.0,0.023]
[1730684336466,0.37566316,68778.0,68777.0,0.009]
[1730684336657,0.41790693,68778.0,68773.0,0.072734]
[1730684336859,0.16053352,68777.0,68772.0,0.072735]
[1730684337159,0.16053352,68776.0,68769.0,0.00218112]
[1730684337468,0.16053352,68775.0,68774.0,0.072734]
[1730684337775,0.10836162,68775.0,68774.0,0.072734]
[1730684337969,0.16053352,68775.0,68774.0,0.072734]
[1730684338162,0.10836162,68775.0,68774.0,0.072734]
[1730684338363,0.02809637,68775.0,68774.0,0.072734]
[1730684339277,0.18664341,68778.0,68777.0,0.072731]
[1730684340076,0.18264341,68778.0,68777.0,0.072731]
[1730684340766,0.18464341,68778.0,68777.0,0.072731]
[1730684340962,0.18464341,68778.0,68771.0,0.04334387]
[1730684341159,0.072736,68772.0,68769.0,0.04552499]
[1730684341360,0.0926,68771.0,68770.0,0.072738]
[1730684342268,0.0926,68771.0,68770.0,0.11608187]
[1730684342772,0.0926,68771.0,68770.0,0.072738]
[1730684342958,0.0926,68771.0,68769.0,0.00218112]
[1730684343163,0.072738,68770.0,68769.0,0.04552499]
[1730684343363,0.072738,68770.0,68769.0,0.00218112]
[1730684344575,0.002,68771.0,68766.0,0.3608]
[1730684344783,0.002,68771.0,68770.0,0.072738]
[1730684345467,0.001,68771.0,68770.0,0.072738]
[1730684345767,0.04459588,68772.0,68769.0,0.006]
[1730684345970,0.192053,68775.0,68771.0,0.072737]
[1730684346566,0.13939964,68772.0,68771.0,0.072737]
[1730684348262,0.3608,68776.0,68770.0,0.005]
[1730684348263,0.3608,68776.0,68774.0,0.072734]
[1730684348465,0.072736,68772.0,68771.0,0.001]
[1730684348665,0.21213564,68772.0,68771.0,0.002]
[1730684349161,0.21213564,68772.0,68771.0,0.001]
[1730684349468,0.21213564,68772.0,68771.0,0.008]
[1730684354274,0.27587108,68772.0,68771.0,0.008]
[1730684356173,0.39515108,68772.0,68771.0,0.008]
[1730684356569,0.32241508,68772.0,68771.0,0.008]
[1730684356769,0.28678493,68772.0,68771.0,0.080737]
[1730684357077,0.16750493,68772.0,68771.0,0.080737]
[1730684357474,0.02810529,68772.0,68771.0,0.080737]
[1730684359875,0.13939964,68774.0,68771.0,0.008]
[1730684360072,0.06372942,68773.0,68772.0,0.072736]
[1730684361882,0.06372942,68773.0,68772.0,0.075736]
[1730684362178,0.13939964,68778.0,68772.0,0.003]
[1730684362379,0.13939964,68778.0,68777.0,0.072731]
[1730684363383,0.47819073,68779.0,68778.0,0.07273]
[1730684363384,0.04466173,68779.0,68778.0,0.07273]
[1730684363681,0.04346172,68779.0,68778.0,0.07273]
[1730684363880,0.072726,68782.0,68777.0,0.04336878]
[1730684364079,0.072726,68782.0,68779.0,0.072728]
[1730684364280,0.072726,68782.0,68779.0,0.11609678]
[1730684364676,0.11741514,68782.0,68779.0,0.11609678]
[1730684364884,0.04468914,68782.0,68779.0,0.11609678]
[1730684365080,0.04468914,68782.0,68775.0,0.05779182]
[1730684365081,0.072729,68779.0,68778.0,0.04336878]
[1730684365385,0.21212864,68779.0,68778.0,0.04336878]
[1730684365686,0.14239964,68779.0,68778.0,0.04336878]
[1730684365892,0.14239964,68779.0,68778.0,0.11609878]
[1730684366076,0.13939964,68779.0,68778.0,0.11609878]
[1730684366772,0.13939964,68779.0,68778.0,0.11809878]
[1730684367192,0.13939964,68779.0,68778.0,0.07473]
[1730684367482,0.21212864,68779.0,68778.0,0.04536878]
[1730684367686,0.21212864,68779.0,68778.0,0.04736878]
[1730684367980,0.21212864,68779.0,68778.0,0.004]
[1730684368976,0.072735,68773.0,68772.0,0.04336878]
[1730684369176,0.072735,68773.0,68762.0,0.05779182]
[1730684369177,0.57293464,68773.0,68762.0,0.05779182]
[1730684369384,0.072747,68762.0,68755.0,0.072754]
[1730684369585,0.13939964,68756.0,68755.0,0.072754]
[1730684369776,0.24780242,68756.0,68751.0,0.072758]
[1730684369974,0.26401139,68759.0,68751.0,0.072758]
[1730684369975,0.13939964,68752.0,68751.0,0.072758]
[1730684370181,0.24780242,68752.0,68751.0,0.072758]
[1730684370491,0.20313941,68752.0,68746.0,0.3608]
[1730684370678,0.13649777,68751.0,68747.0,0.072762]
[1730684371582,0.13649777,68751.0,68750.0,0.01618154]
[1730684372574,0.13650541,68751.0,68750.0,0.01618154]
[1730684372775,0.13750541,68751.0,68750.0,0.02718154]
[1730684373078,0.06474741,68751.0,68750.0,0.02718154]
[1730684373278,0.06574741,68751.0,68750.0,0.02318154]
[1730684374189,0.18317552,68751.0,68750.0,0.02318154]
[1730684374980,0.18317552,68751.0,68750.0,0.021]
[1730684375195,0.18317552,68751.0,68736.0,0.0463]
[1730684375196,0.81113776,68751.0,68736.0,0.0463]
[1730684375496,0.81113776,68751.0,68723.0,0.072788]
[1730684375497,0.07278,68731.0,68723.0,0.072788]
[1730684375791,0.50019964,68742.0,68723.0,0.072788]
[1730684375792,0.13939964,68724.0,68723.0,0.072788]
[1730684375978,0.20314705,68724.0,68723.0,0.072788]
[1730684376383,0.02811057,68724.0,68723.0,0.072788]
[1730684376685,0.06376064,68727.0,68723.0,0.072788]
[1730684376882,0.06376064,68726.0,68725.0,0.072786]
[1730684377073,0.13939964,68728.0,68725.0,0.072786]
[1730684377278,0.072783,68728.0,68722.0,0.06008639]
[1730684377488,0.001,68724.0,68723.0,0.012]
[1730684377677,0.00024873,68724.0,68723.0,0.022]
[1730684378982,0.00024873,68724.0,68723.0,0.094788]
[1730684379286,0.04550636,68728.0,68726.0,0.072785]
[1730684379491,0.001,68728.0,68726.0,0.072785]
[1730684379690,0.001,68728.0,68727.0,0.072784]
[1730684380280,0.11916,68729.0,68727.0,0.072784]
[1730684380479,0.001,68728.0,68727.0,0.072784]
[1730684381384,0.11916,68739.0,68727.0,0.43652]
[1730684381582,0.072769,68741.0,68725.0,0.13939964]
[1730684381881,0.50019964,68742.0,68735.0,0.072775]
[1730684382089,0.13939964,68737.0,68729.0,0.3608]
[1730684382287,0.13939964,68737.0,68736.0,0.072774]
[1730684383212,0.40490934,68742.0,68741.0,0.072769]
[1730684383213,0.3608,68742.0,68741.0,0.072769]
[1730684383998,0.00218293,68745.0,68744.0,0.072766]
[1730684384292,0.00218293,68745.0,68736.0,0.0937]
[1730684384293,0.00218293,68745.0,68739.0,0.072771]
[1730684384500,0.00218293,68745.0,68736.0,0.0483]
[1730684384501,0.072772,68739.0,68736.0,0.0483]
[1730684384696,0.13939964,68737.0,68736.0,0.0483]
[1730684385287,0.13939964,68737.0,68736.0,0.121074]
[1730684385997,0.13939964,68737.0,68736.0,0.118074]
[1730684386498,0.14039964,68737.0,68736.0,0.076774]
[1730684386892,0.14139964,68737.0,68736.0,0.079774]
[1730684390397,0.002,68737.0,68736.0,0.079774]
[1730684391992,0.002,68737.0,68736.0,0.516214]
[1730684392193,0.002,68737.0,68736.0,0.55927427]
[1730684395403,0.002,68737.0,68736.0,0.61717808]
[1730684396489,0.002,68737.0,68736.0,0.55927427]
[1730684397405,0.002,68737.0,68736.0,0.66746931]
[1730684398591,0.002,68737.0,68736.0,0.7535621]
[1730684398906,0.04453308,68754.0,68744.0,0.072766]
[1730684399094,0.13939964,68773.0,68753.0,0.44744138]
[1730684399295,0.13939964,68773.0,68765.0,0.072744]
[1730684399496,0.21213464,68773.0,68765.0,0.072744]
[1730684399903,0.13939964,68773.0,68765.0,0.072744]
[1730684400099,0.13939964,68768.0,68765.0,0.072744]
[1730684400510,0.049,68785.0,68765.0,0.94842364]
[1730684400693,0.13939964,68788.0,68787.0,0.07272]
[1730684401003,0.0472,68792.0,68791.0,0.072716]
[1730684401204,0.0472,68792.0,68784.0,0.3608]
[1730684401393,0.13939964,68785.0,68784.0,0.433524]
[1730684402098,0.013,68788.0,68784.0,0.3608]
[1730684402295,0.013,68788.0,68787.0,0.07272]
[1730684402706,0.0472,68792.0,68791.0,0.072716]
[1730684403215,0.3608,68804.0,68791.0,0.072716]
[1730684403216,0.00218158,68803.0,68802.0,0.072705]
[1730684403406,0.04558456,68803.0,68802.0,0.072705]
[1730684403607,0.00218158,68803.0,68802.0,0.072705]
[1730684404107,0.07488458,68803.0,68802.0,0.072705]
[1730684404503,0.00218158,68803.0,68802.0,0.072705]
[1730684404895,0.00218158,68803.0,68802.0,0.21210464]
[1730684405301,0.00418158,68803.0,68802.0,0.21310464]
[1730684405504,0.00418158,68803.0,68802.0,0.21410464]
[1730684406308,0.00418158,68803.0,68802.0,0.21310464]
[1730684406615,0.16465172,68803.0,68802.0,0.001]
[1730684406800,0.16465172,68803.0,68802.0,0.073705]
[1730684406997,0.1365657,68803.0,68802.0,0.073705]
[1730684407309,0.16465235,68803.0,68802.0,0.073705]
[1730684407515,0.16465134,68803.0,68802.0,0.13939964]
[1730684408013,0.16465134,68803.0,68802.0,0.072705]
[1730684408406,0.16465134,68803.0,68799.0,0.1048844]
[1730684408603,0.16046976,68802.0,68799.0,0.1048844]
[1730684408915,0.16046976,68801.0,68799.0,0.1048844]
[1730684409114,0.16046976,68800.0,68799.0,0.1775924]
[1730684409504,0.16046976,68800.0,68799.0,0.6136324]
[1730684409713,0.16046976,68800.0,68799.0,0.6146324]
[1730684409919,0.16046976,68800.0,68799.0,0.48190938]
[1730684410214,0.16046976,68800.0,68799.0,0.48090938]
[1730684410599,0.16046976,68800.0,68799.0,0.48190938]
[1730684411313,0.16546976,68800.0,68799.0,0.48090938]
[1730684411716,0.35204533,68800.0,68799.0,0.48090938]
[1730684412519,0.27638633,68800.0,68799.0,0.48090938]
[1730684412718,0.22523728,68800.0,68799.0,0.48090938]
[1730684413018,0.09081076,68800.0,68799.0,0.48090938]
[1730684413225,0.03366171,68800.0,68799.0,0.48090938]
[1730684413520,0.03566171,68800.0,68799.0,0.24810655]
[1730684413921,0.03566171,68800.0,68799.0,0.32081455]
[1730684414416,0.001,68800.0,68799.0,0.32081455]
[1730684414615,0.002,68800.0,68799.0,0.33481455]
[1730684414811,0.3608,68817.0,68816.0,0.07269]
[1730684415209,0.54971822,68817.0,68816.0,0.07269]
[1730684416515,0.55171822,68817.0,68816.0,0.07269]
[1730684417610,0.55171822,68817.0,68816.0,0.07369]
[1730684417611,0.55771822,68817.0,68816.0,0.07369]
[1730684418923,0.55771822,68817.0,68816.0,0.001]
[1730684419220,0.18673832,68803.0,68800.0,0.072706]
[1730684419422,0.18673832,68792.0,68791.0,0.04298435]
[1730684419721,0.18673832,68795.0,68794.0,0.072713]
[1730684419922,0.18673832,68795.0,68794.0,0.21211264]
[1730684421423,0.18773832,68795.0,68794.0,0.22611264]
[1730684421611,0.001,68795.0,68794.0,0.22611264]
[1730684422004,0.001,68795.0,68794.0,0.66219264]
[1730684422209,0.001,68795.0,68794.0,0.22611264]
[1730684423012,0.001,68795.0,68794.0,0.67219264]
[1730684423210,0.18773832,68795.0,68794.0,0.096713]
[1730684423818,0.18773832,68795.0,68794.0,0.100713]
[1730684424024,0.001,68795.0,68794.0,0.100713]
[1730684424530,0.3608,68811.0,68810.0,0.072696]
[1730684424819,0.54753832,68811.0,68810.0,0.21209564]
[1730684425509,0.54753832,68811.0,68810.0,0.57289564]
[1730684425510,0.18673832,68811.0,68810.0,0.57289564]
[1730684425717,0.18673832,68811.0,68810.0,0.21209564]
[1730684426119,0.18773832,68811.0,68810.0,0.21209564]
[1730684426713,0.18673832,68811.0,68810.0,0.21209564]
[1730684426927,0.18773832,68811.0,68810.0,0.21909564]
[1730684427121,0.18773832,68811.0,68810.0,0.22709564]
[1730684428922,0.00342015,68824.0,68823.0,0.072682]
[1730684429121,0.00218015,68824.0,68823.0,0.21208164]
[1730684429510,0.0468,68830.0,68829.0,0.072676]
[1730684429714,0.23353832,68830.0,68829.0,0.13041112]
[1730684431425,0.23353832,68830.0,68829.0,0.072676]
[1730684431824,0.30621332,68830.0,68829.0,0.073676]
[1730684432230,0.30621332,68830.0,68829.0,0.001]
[1730684432624,0.30621332,68830.0,68829.0,0.002]
[1730684433424,0.30621332,68830.0,68829.0,0.05973355]
[1730684434424,0.30621332,68830.0,68829.0,0.002]
[1730684434621,0.30621332,68830.0,68829.0,0.05977894]
[1730684436530,0.30621332,68830.0,68829.0,0.002]
[1730684437725,0.30621332,68830.0,68825.0,0.05777724]
[1730684437726,0.119475,68830.0,68825.0,0.05777724]
[1730684437923,0.119475,68830.0,68817.0,0.52986257]
[1730684437924,0.13939964,68827.0,68817.0,0.44322119]
[1730684438129,0.3608,68821.0,68820.0,0.072685]
[1730684438337,0.30988314,68821.0,68820.0,0.072685]
[1730684442125,0.11532175,68822.0,68820.0,0.072685]
[1730684442735,0.3608,68826.0,68817.0,0.44322119]
[1730684443320,0.001,68822.0,68821.0,0.072684]
[1730684444531,0.02908074,68822.0,68821.0,0.072684]
[1730684444934,0.1093007,68822.0,68821.0,0.072684]
[1730684445124,0.07370169,68822.0,68821.0,0.072684]
[1730684445330,0.1103007,68822.0,68821.0,0.072684]
[1730684445530,0.1093007,68822.0,68821.0,0.072684]
[1730684445925,0.1083007,68822.0,68821.0,0.072684]
[1730684446128,0.04562095,68822.0,68821.0,0.072684]
[1730684446334,0.07370169,68822.0,68821.0,0.072684]
[1730684446644,0.1093007,68822.0,68821.0,0.072684]
[1730684447323,0.02908094,68822.0,68821.0,0.072684]
[1730684447534,0.1093015,68822.0,68821.0,0.072684]
[1730684451637,0.001,68822.0,68821.0,0.270107]
[1730684451830,0.001,68822.0,68821.0,0.27010774]
[1730684452029,0.073683,68822.0,68821.0,0.19742374]
[1730684452230,0.21308264,68822.0,68821.0,0.11078236]
[1730684452429,0.14039964,68822.0,68817.0,0.51666919]
[1730684452631,0.001,68822.0,68818.0,0.18347701]
[1730684452839,0.001,68822.0,68819.0,0.11079001]
[1730684453030,0.072684,68821.0,68820.0,0.11079001]
[1730684453739,0.001,68822.0,68820.0,0.69763103]
[1730684453933,0.001,68822.0,68821.0,0.18347401]
[1730684454636,0.001,68822.0,68821.0,0.27041863]
[1730684455542,0.073683,68822.0,68821.0,0.18347401]
[1730684455745,0.072683,68822.0,68821.0,0.18347401]
[1730684456330,0.072683,68822.0,68821.0,0.072684]
[1730684456540,0.073683,68822.0,68821.0,0.072684]
[1730684459640,0.13736514,68822.0,68821.0,0.072684]
[1730684459843,0.13736514,68822.0,68817.0,0.44322119]
[1730684459844,0.072687,68819.0,68817.0,0.44322119]
[1730684460052,0.10830476,68818.0,68817.0,0.44322119]
[1730684460231,0.16044594,68818.0,68817.0,0.44322119]
[1730684460436,0.11582332,68818.0,68817.0,0.44322119]
[1730684460649,0.10830476,68818.0,68817.0,0.44322119]
[1730684460942,0.23313394,68818.0,68817.0,0.51591019]
[1730684461144,0.23313394,68818.0,68817.0,0.44322119]
[1730684461544,0.18099276,68818.0,68817.0,0.51591019]
[1730684462246,0.10830476,68818.0,68817.0,0.51591019]
[1730684462446,0.03410476,68818.0,68817.0,0.95183019]
[1730684462633,0.14536811,68825.0,68824.0,0.072681]
[1730684463147,0.14536811,68825.0,68823.0,0.13939964]
[1730684463148,0.50616811,68826.0,68823.0,1.63939964]
[1730684463348,0.3608,68826.0,68825.0,0.07268]